fUSD/lending_fUSD_20250308
["ID","MTS","AMOUNT","RATE_DAILY","PERIOD"]
[355669455,1741450247955,-1459.0,8.683e-05,2]
[355669456,1741450247964,-640.0,8.683e-05,2]
[355669457,1741450247974,-704.31991907,8.724e-05,2]
[355669458,1741450247984,-500.0,8.767e-05,2]
[355669459,1741450247993,-500.0,8.767e-05,2]
[355669460,1741450248003,-500.0,8.767e-05,2]
[355669461,1741450248013,-500.0,8.767e-05,2]
[355669462,1741450248023,-500.0,8.767e-05,2]
[355669463,1741450248033,-500.0,8.767e-05,2]
[355669464,1741450248045,-500.0,8.767e-05,2]
[355669465,1741450248054,-500.0,8.767e-05,2]
[355669466,1741450248064,-500.0,8.767e-05,2]
[355669467,1741450248073,-500.0,8.767e-05,2]
[355669468,1741450248083,-500.0,8.767e-05,2]
[355669469,1741450248093,-623.78,8.767e-05,2]
[355669470,1741450248102,-500.0,8.767e-05,2]
[355669471,1741450248112,-735.61,8.767e-05,2]
[355669472,1741450248121,-500.0,8.767e-05,2]
[355669473,1741450248131,-500.0,8.767e-05,2]
[355669474,1741450248140,-500.0,8.767e-05,2]
[355669475,1741450248150,-500.0,8.767e-05,2]
[355669476,1741450248160,-500.0,8.767e-05,2]
[355669477,1741450248170,-500.0,8.767e-05,2]
[355669478,1741450248179,-500.0,8.767e-05,2]
[355669479,1741450248189,-395.54230687,8.767e-05,2]
[355669480,1741450248200,-500.0,8.767e-05,2]
[355669481,1741450248210,-500.0,8.767e-05,2]
[355669482,1741450248219,-536.09,8.767e-05,2]
[355669483,1741450248229,-500.0,8.767e-05,2]
[355669484,1741450248238,-500.0,8.767e-05,2]
[355669485,1741450248248,-500.0,8.767e-05,2]
[355669486,1741450248258,-500.0,8.767e-05,2]
[355669487,1741450248267,-394.09024325,8.767e-05,2]
[355669488,1741450248277,-500.0,8.767e-05,2]
[355669489,1741450248288,-500.0,8.767e-05,2]
[355669490,1741450248299,-500.0,8.767e-05,2]
[355669491,1741450248308,-500.0,8.767e-05,2]
[355669492,1741450248319,-500.0,8.767e-05,2]
[355669493,1741450248328,-500.0,8.767e-05,2]
[355669494,1741450248338,-500.0,8.767e-05,2]
[355669495,1741450248347,-500.0,8.767e-05,2]
[355669496,1741450248357,-500.0,8.767e-05,2]
[355669497,1741450248367,-500.0,8.767e-05,2]
[355669498,1741450248378,-611.2,8.767e-05,2]
[355669499,1741450248388,-500.0,8.767e-05,2]
[355669500,1741450248398,-500.0,8.767e-05,2]
[355669501,1741450248407,-500.0,8.767e-05,2]
[355669502,1741450248417,-500.0,8.767e-05,2]
[355669503,1741450248427,-500.0,8.767e-05,2]
[355669504,1741450248436,-500.0,8.767e-05,2]
[355669505,1741450248446,-500.0,8.767e-05,2]
[355669506,1741450248456,-598.25,8.767e-05,2]
[355669507,1741450248466,-500.0,8.767e-05,2]
[355669508,1741450248475,-801.86,8.767e-05,2]
[355669509,1741450248485,-500.0,8.767e-05,2]
[355669510,1741450248495,-500.0,8.767e-05,2]
[355669511,1741450248505,-563.45,8.767e-05,2]
[355669512,1741450248516,-500.0,8.767e-05,2]
[355669513,1741450248526,-500.0,8.767e-05,2]
[355669514,1741450248535,-631.96,8.767e-05,2]
[355669515,1741450248545,-786.33,8.767e-05,2]
[355669516,1741450248555,-500.0,8.767e-05,2]
[355669517,1741450248565,-585.65,8.767e-05,2]
[355669518,1741450248575,-500.0,8.767e-05,2]
[355669519,1741450248585,-559.71,8.767e-05,2]
[355669520,1741450248594,-500.0,8.767e-05,2]
[355669521,1741450248604,-500.0,8.767e-05,2]
[355669522,1741450248614,-500.0,8.767e-05,2]
[355669523,1741450248625,-500.0,8.767e-05,2]
[355669524,1741450248635,-570.31,8.767e-05,2]
[355669525,1741450248645,-500.0,8.767e-05,2]
[355669526,1741450248654,-500.0,8.767e-05,2]
[355669527,1741450248664,-500.0,8.767e-05,2]
[355669528,1741450248674,-674.8,8.767e-05,2]
[355669529,1741450248684,-500.0,8.767e-05,2]
[355669530,1741450248694,-500.0,8.767e-05,2]
[355669531,1741450248704,-500.0,8.767e-05,2]
[355669532,1741450248713,-875.54,8.767e-05,2]
[355669533,1741450248723,-500.0,8.767e-05,2]
[355669534,1741450248733,-697.96,8.767e-05,2]
[355669535,1741450248742,-500.0,8.767e-05,2]
[355669536,1741450248752,-500.0,8.767e-05,2]
[355669537,1741450248762,-500.0,8.767e-05,2]
[355669538,1741450248773,-500.0,8.767e-05,2]
[355669539,1741450248783,-500.0,8.767e-05,2]
[355669540,1741450248793,-828.33,8.767e-05,2]
[355669541,1741450248802,-500.0,8.767e-05,2]
[355669542,1741450248812,-500.0,8.767e-05,2]
[355669543,1741450248822,-554.2,8.767e-05,2]
[355669544,1741450248832,-500.0,8.767e-05,2]
[355669545,1741450248842,-500.0,8.767e-05,2]
[355669546,1741450248851,-500.0,8.767e-05,2]
[355669547,1741450248861,-500.0,8.767e-05,2]
[355669548,1741450248871,-500.0,8.767e-05,2]
[355669549,1741450248880,-500.0,8.767e-05,2]
[355669550,1741450248890,-511.03,8.767e-05,2]
[355669551,1741450248900,-602.41,8.767e-05,2]
[355669552,1741450248911,-500.0,8.767e-05,2]
[355669553,1741450248921,-500.0,8.767e-05,2]
[355669554,1741450248931,-500.0,8.767e-05,2]
[355669555,1741450248942,-500.0,8.767e-05,2]
[355669556,1741450248952,-500.0,8.767e-05,2]
[355669557,1741450248962,-567.16,8.767e-05,2]
[355669558,1741450248971,-500.0,8.767e-05,2]
[355669559,1741450248982,-500.0,8.767e-05,2]
[355669560,1741450248992,-500.0,8.767e-05,2]
[355669561,1741450249002,-500.0,8.767e-05,2]
[355669562,1741450249012,-500.0,8.767e-05,2]
[355669563,1741450249022,-716.52,8.767e-05,2]
[355669564,1741450249032,-516.17,8.767e-05,2]
[355669565,1741450249042,-555.84,8.767e-05,2]
[355669566,1741450249052,-500.0,8.767e-05,2]
[355669567,1741450249062,-654.94,8.767e-05,2]
[355669568,1741450249072,-500.0,8.767e-05,2]
[355669569,1741450249082,-611.173404,8.767e-05,2]
[355669570,1741450249092,-842.65,8.767e-05,2]
[355669571,1741450249102,-500.0,8.767e-05,2]
[355669572,1741450249111,-774.84,8.767e-05,2]
[355669573,1741450249122,-962.59,8.767e-05,2]
[355669574,1741450249132,-500.0,8.767e-05,2]
[355669575,1741450249142,-500.0,8.767e-05,2]
[355669576,1741450249152,-500.0,8.767e-05,2]
[355669577,1741450249162,-500.0,8.767e-05,2]
[355669578,1741450249172,-500.0,8.767e-05,2]
[355669579,1741450249181,-500.0,8.767e-05,2]
[355669580,1741450249192,-500.0,8.767e-05,2]
[355669581,1741450249201,-500.0,8.767e-05,2]
[355669582,1741450249357,-709.03,8.767e-05,2]
[355669583,1741450249377,-500.0,8.767e-05,2]
[355669584,1741450249387,-393.282689,8.767e-05,2]
[355669585,1741450249397,-1001.97,8.767e-05,2]
[355669586,1741450249407,-500.0,8.767e-05,2]
[355669587,1741450249417,-500.0,8.767e-05,2]
[355669588,1741450249427,-500.0,8.767e-05,2]
[355669589,1741450249436,-500.0,8.767e-05,2]
[355669590,1741450249446,-864.87,8.767e-05,2]
[355669591,1741450249455,-834.37,8.767e-05,2]
[355669592,1741450249465,-500.0,8.767e-05,2]
[355669593,1741450249475,-500.0,8.767e-05,2]
[355669594,1741450249484,-534.8,8.767e-05,2]
[355669595,1741450249494,-1049.79,8.767e-05,2]
[355669596,1741450249504,-860.21,8.767e-05,2]
[355669597,1741450249514,-976.28,8.767e-05,2]
[355669598,1741450249524,-500.0,8.767e-05,2]
[355669599,1741450249534,-859.81,8.767e-05,2]
[355669600,1741450249544,-500.0,8.767e-05,2]
[355669601,1741450249554,-500.0,8.767e-05,2]
[355669602,1741450249563,-500.0,8.767e-05,2]
[355669603,1741450249573,-500.0,8.767e-05,2]
[355669604,1741450249582,-573.05,8.767e-05,2]
[355669605,1741450249591,-1000.46,8.767e-05,2]
[355669606,1741450249601,-500.0,8.767e-05,2]
[355669607,1741450249611,-1201.81,8.767e-05,2]
[355669608,1741450249621,-500.0,8.767e-05,2]
[355669609,1741450249631,-608.51,8.767e-05,2]
[355669610,1741450249640,-1223.76,8.767e-05,2]
[355669611,1741450249650,-972.3,8.767e-05,2]
[355669612,1741450249660,-500.0,8.767e-05,2]
[355669613,1741450249669,-500.0,8.767e-05,2]
[355669614,1741450249679,-500.0,8.767e-05,2]
[355669615,1741450249689,-500.0,8.767e-05,2]
[355669616,1741450249698,-923.34,8.767e-05,2]
[355669617,1741450249709,-676.23,8.767e-05,2]
[355669618,1741450249719,-528.52,8.767e-05,2]
[355669619,1741450249729,-500.0,8.767e-05,2]
[355669620,1741450249739,-564.81,8.767e-05,2]
[355669621,1741450249749,-516.47,8.767e-05,2]
[355669622,1741450249759,-1192.68,8.767e-05,2]
[355669623,1741450249769,-628.26,8.767e-05,2]
[355669624,1741450249779,-500.0,8.767e-05,2]
[355669625,1741450249789,-764.96,8.767e-05,2]
[355669626,1741450249800,-1006.07,8.767e-05,2]
[355669627,1741450249811,-500.0,8.767e-05,2]
[355669628,1741450249821,-565.59,8.767e-05,2]
[355669629,1741450249831,-500.0,8.767e-05,2]
[355669630,1741450249841,-500.0,8.767e-05,2]
[355669631,1741450249851,-500.0,8.767e-05,2]
[355669632,1741450249861,-515.54,8.767e-05,2]
[355669633,1741450249871,-594.03,8.767e-05,2]
[355669634,1741450249881,-500.0,8.767e-05,2]
[355669635,1741450249891,-930.15,8.767e-05,2]
[355669636,1741450249901,-500.0,8.767e-05,2]
[355669637,1741450249911,-633.41,8.767e-05,2]
[355669638,1741450249921,-500.0,8.767e-05,2]
[355669639,1741450249931,-500.0,8.767e-05,2]
[355669640,1741450249943,-1209.92,8.767e-05,2]
[355669641,1741450249954,-773.96,8.767e-05,2]
[355669642,1741450249963,-500.0,8.767e-05,2]
[355669643,1741450249973,-2083.12,8.767e-05,2]
[355669644,1741450249982,-500.0,8.767e-05,2]
[355669645,1741450249992,-864.36,8.767e-05,2]
[355669646,1741450250002,-4992.7,8.767e-05,2]
[355669647,1741450250013,-434.10575036,8.767e-05,2]
[355669648,1741450250024,-594.4,8.767e-05,2]
[355669649,1741450250034,-627.02,8.767e-05,2]
[355669650,1741450250043,-503.98902422,8.767e-05,2]
[355669651,1741450250054,-851.99,8.767e-05,2]
[355669652,1741450250064,-1442.37,8.767e-05,2]
[355669653,1741450250074,-1003.48,8.767e-05,2]
[355669654,1741450250083,-5042.13,8.767e-05,2]
[355669655,1741450250093,-2121.73,8.767e-05,2]
[355669656,1741450250103,-500.0,8.767e-05,2]
[355669657,1741450250113,-879.88,8.767e-05,2]
[355669658,1741450250122,-4139.0,8.767e-05,2]
[355669659,1741450250132,-2225.22,8.767e-05,2]
[355669660,1741450250142,-2387.01,8.767e-05,2]
[355669661,1741450250152,-1387.09,8.767e-05,2]
[355669662,1741450250161,-500.0,8.767e-05,2]
[355669663,1741450250171,-500.0,8.767e-05,2]
[355669664,1741450250181,-500.0,8.767e-05,2]
[355669665,1741450250191,-1041.41,8.767e-05,2]
[355669666,1741450250201,-2411.52,8.767e-05,2]
[355669667,1741450250210,-644.99,8.767e-05,2]
[355669668,1741450250220,-500.0,8.767e-05,2]
[355669669,1741450250231,-500.0,8.767e-05,2]
[355669670,1741450250241,-1755.99,8.767e-05,2]
[355669671,1741450250251,-1615.13,8.767e-05,2]
[355669672,1741450250260,-1370.66,8.767e-05,2]
[355669673,1741450250272,-500.0,8.767e-05,2]
[355669674,1741450250282,-1657.53,8.767e-05,2]
[355669675,1741450250292,-500.0,8.767e-05,2]
[355669676,1741450250303,-1898.02,8.767e-05,2]
[355669677,1741450250313,-500.0,8.767e-05,2]
[355669678,1741450250323,-786.54,8.767e-05,2]
[355669679,1741450250334,-631.73,8.767e-05,2]
[355669680,1741450250345,-503.04,8.767e-05,2]
[355669681,1741450250357,-2515.6,8.767e-05,2]
[355669682,1741450250367,-500.0,8.767e-05,2]
[355669683,1741450250377,-1347.38,8.767e-05,2]
[355669684,1741450250387,-778.74,8.767e-05,2]
[355669685,1741450250398,-1222.18,8.767e-05,2]
[355669686,1741450250409,-1595.58,8.767e-05,2]
[355669687,1741450250421,-1606.44,8.767e-05,2]
[355669688,1741450250431,-2769.7,8.767e-05,2]
[355669689,1741450250440,-500.0,8.767e-05,2]
[355669690,1741450250450,-785.85,8.767e-05,2]
[355669691,1741450250460,-500.0,8.767e-05,2]
[355669692,1741450250470,-500.0,8.767e-05,2]
[355669693,1741450250480,-1497.11,8.767e-05,2]
[355669694,1741450250490,-1166.49,8.767e-05,2]
[355669695,1741450250501,-2049.23,8.767e-05,2]
[355669696,1741450250511,-2219.69,8.767e-05,2]
[355669697,1741450250521,-1357.3,8.767e-05,2]
[355669698,1741450250532,-500.0,8.767e-05,2]
[355669699,1741450250542,-500.0,8.767e-05,2]
[355669700,1741450250552,-500.0,8.767e-05,2]
[355669701,1741450250562,-6133.09,8.767e-05,2]
[355669702,1741450250571,-2171.47,8.767e-05,2]
[355669703,1741450250581,-2984.49,8.767e-05,2]
[355669704,1741450250591,-500.0,8.767e-05,2]
[355669705,1741450250600,-500.0,8.767e-05,2]
[355669706,1741450250610,-1037.89,8.767e-05,2]
[355669707,1741450250619,-867.84,8.767e-05,2]
[355669708,1741450250628,-500.0,8.767e-05,2]
[355669709,1741450250638,-1863.08,8.767e-05,2]
[355669710,1741450250648,-659.99,8.767e-05,2]
[355669711,1741450250657,-1075.32,8.767e-05,2]
[355669712,1741450250667,-3089.68,8.767e-05,2]
[355669713,1741450250677,-2187.41,8.767e-05,2]
[355669714,1741450250687,-572.79,8.767e-05,2]
[355669715,1741450250697,-5995.75,8.767e-05,2]
[355669716,1741450250707,-612.48988625,8.767e-05,2]
[355669717,1741450250717,-752.18,8.767e-05,2]
[355669718,1741450250726,-1319.49,8.767e-05,2]
[355669719,1741450250737,-1011.66,8.767e-05,2]
[355669720,1741450250747,-1350.39,8.767e-05,2]
[355669721,1741450250757,-1382.87,8.767e-05,2]
[355669722,1741450250766,-6919.1,8.767e-05,2]
[355669723,1741450250776,-567.75,8.767e-05,2]
[355669724,1741450250786,-604.0,8.767e-05,2]
[355669725,1741450250795,-1687.87,8.767e-05,2]
[355669726,1741450250805,-1157.52,8.767e-05,2]
[355669727,1741450250815,-789.79,8.767e-05,2]
[355669728,1741450250825,-887.2,8.767e-05,2]
[355669729,1741450250835,-2152.71,8.767e-05,2]
[355669730,1741450250844,-2756.22,8.767e-05,2]
[355669731,1741450250854,-872.98,8.767e-05,2]
[355669732,1741450250864,-500.0,8.767e-05,2]
[355669733,1741450250874,-3325.61,8.767e-05,2]
[355669734,1741450250883,-1306.31,8.767e-05,2]
[355669735,1741450250893,-12011.57,8.767e-05,2]
[355669736,1741450250902,-2363.22,8.767e-05,2]
[355669737,1741450250913,-1257.23,8.767e-05,2]
[355669738,1741450250923,-1805.35,8.767e-05,2]
[355669739,1741450250932,-500.0,8.767e-05,2]
[355669740,1741450250942,-500.0,8.767e-05,2]
[355669741,1741450250951,-1413.01,8.767e-05,2]
[355669742,1741450250961,-2989.51,8.767e-05,2]
[355669743,1741450250971,-935.65,8.767e-05,2]
[355669744,1741450250982,-747.04,8.767e-05,2]
[355669745,1741450250992,-721.1,8.767e-05,2]
[355669746,1741450251001,-1813.66,8.767e-05,2]
[355669747,1741450251011,-500.0,8.767e-05,2]
[355669748,1741450251022,-11444.74,8.767e-05,2]
[355669749,1741450251032,-194.85890009,8.767e-05,2]
[355669750,1741450251042,-2830.5,8.767e-05,2]
[355669751,1741450251054,-1286.66,8.767e-05,2]
[355669752,1741450251064,-2528.21,8.767e-05,2]
[355669753,1741450251073,-1510.82,8.767e-05,2]
[355669754,1741450251083,-1264.6,8.767e-05,2]
[355669755,1741450251093,-500.0,8.767e-05,2]
[355669756,1741450251104,-689.64,8.767e-05,2]
[355669757,1741450251113,-2233.02,8.767e-05,2]
[355669758,1741450251123,-500.0,8.767e-05,2]
[355669759,1741450251133,-500.0,8.767e-05,2]
[355669760,1741450251143,-2773.87,8.767e-05,2]
[355669761,1741450251153,-1618.72,8.767e-05,2]
[355669762,1741450251164,-500.0,8.767e-05,2]
[355669763,1741450251174,-1021.66,8.767e-05,2]
[355669764,1741450251185,-620.61,8.767e-05,2]
[355669765,1741450251195,-3122.98,8.767e-05,2]
[355669766,1741450251205,-913.18,8.767e-05,2]
[355669767,1741450251215,-610.59,8.767e-05,2]
[355669768,1741450251225,-5945.69,8.767e-05,2]
[355669769,1741450251235,-500.0,8.767e-05,2]
[355669770,1741450251244,-500.0,8.767e-05,2]
[355669771,1741450251254,-860.34,8.767e-05,2]
[355669772,1741450251264,-942.29,8.767e-05,2]
[355669773,1741450251280,-4818.15,8.767e-05,2]
[355669774,1741450251291,-500.0,8.767e-05,2]
[355669775,1741450251302,-500.0,8.767e-05,2]
[355669776,1741450251311,-500.0,8.767e-05,2]
[355669777,1741450251322,-5476.0,8.767e-05,2]
[355669778,1741450251331,-723.51,8.767e-05,2]
[355669779,1741450251342,-1402.52,8.767e-05,2]
[355669780,1741450251354,-3055.95,8.767e-05,2]
[355669781,1741450251365,-500.0,8.767e-05,2]
[355669782,1741450251375,-3991.9,8.767e-05,2]
[355669783,1741450251384,-1339.53,8.767e-05,2]
[355669784,1741450251394,-2276.46,8.767e-05,2]
[355669785,1741450251404,-27669.71,8.767e-05,2]
[355669786,1741450251413,-921.69,8.767e-05,2]
[355669787,1741450251424,-779.56,8.767e-05,2]
[355669788,1741450251434,-500.0,8.767e-05,2]
[355669789,1741450251444,-1165.23,8.767e-05,2]
[355669790,1741450251454,-6567.26,8.767e-05,2]
[355669791,1741450251463,-500.0,8.767e-05,2]
[355669792,1741450251473,-2129.6,8.767e-05,2]
[355669793,1741450251483,-500.0,8.767e-05,2]
[355669794,1741450251492,-500.0,8.767e-05,2]
[355669795,1741450251501,-1661.91,8.767e-05,2]
[355669796,1741450251510,-704.31991907,8.796e-05,2]
[355669797,1741450251520,-165.41,8.8e-05,2]
[355669798,1741450251531,-231.23,8.837e-05,2]
[355669799,1741450251541,-704.31991907,8.868e-05,2]
[355669800,1741450251552,-3456.85,8.914e-05,2]
[355669801,1741450251562,-18642.08,8.914e-05,2]
[355669802,1741450251571,-500.0,8.914e-05,2]
[355669803,1741450251582,-900.26,8.914e-05,2]
[355669804,1741450251592,-506.89,8.914e-05,2]
[355669805,1741450251603,-1590.98,8.914e-05,2]
[355669806,1741450251612,-3349.73,8.914e-05,2]
[355669807,1741450251623,-1213.55,8.914e-05,2]
[355669808,1741450251632,-4631.77,8.914e-05,2]
[355669809,1741450251643,-3584.31,8.914e-05,2]
[355669810,1741450251652,-2586.02,8.914e-05,2]
[355669811,1741450251663,-1313.25,8.914e-05,2]
[355669812,1741450251674,-500.0,8.914e-05,2]
[355669813,1741450251687,-3465.88,8.914e-05,2]
[355669814,1741450251698,-6170.14,8.914e-05,2]
[355669815,1741450251708,-2896.99,8.914e-05,2]
[355669816,1741450251718,-704.31991907,8.94e-05,2]
[355669817,1741450251727,-704.31991907,9.012e-05,2]
[355669818,1741450251738,-550.0,9.039e-05,2]
[355669819,1741450251748,-150.0,9.04e-05,2]
[355669820,1741450251758,-550.0,9.04e-05,2]
[355669821,1741450251767,-150.0,9.041e-05,2]
[355669822,1741450251777,-550.0,9.041e-05,2]
[355669823,1741450251786,-500.0,9.041e-05,2]
[355669824,1741450251796,-500.0,9.041e-05,2]
[355669825,1741450251806,-500.0,9.041e-05,2]
[355669826,1741450251816,-500.0,9.041e-05,2]
[355669827,1741450251826,-500.0,9.041e-05,2]
[355669828,1741450251890,-500.0,9.041e-05,2]
[355669829,1741450251899,-500.0,9.041e-05,2]
[355669830,1741450251909,-500.0,9.041e-05,2]
[355669831,1741450251919,-500.0,9.041e-05,2]
[355669832,1741450251928,-500.0,9.041e-05,2]
[355669833,1741450251939,-500.0,9.041e-05,2]
[355669834,1741450251948,-623.78,9.041e-05,2]
[355669835,1741450251957,-500.0,9.041e-05,2]
[355669836,1741450251967,-735.61,9.041e-05,2]
[355669837,1741450251976,-500.0,9.041e-05,2]
[355669838,1741450251985,-500.0,9.041e-05,2]
[355669839,1741450251994,-500.0,9.041e-05,2]
[355669840,1741450252004,-500.0,9.041e-05,2]
[355669841,1741450252013,-500.0,9.041e-05,2]
[355669842,1741450252022,-500.0,9.041e-05,2]
[355669843,1741450252032,-500.0,9.041e-05,2]
[355669844,1741450252041,-500.0,9.041e-05,2]
[355669845,1741450252053,-500.0,9.041e-05,2]
[355669846,1741450252062,-536.09,9.041e-05,2]
[355669847,1741450252078,-500.0,9.041e-05,2]
[355669848,1741450252088,-500.0,9.041e-05,2]
[355669849,1741450252097,-500.0,9.041e-05,2]
[355669850,1741450252107,-500.0,9.041e-05,2]
[355669851,1741450252117,-500.0,9.041e-05,2]
[355669852,1741450252127,-500.0,9.041e-05,2]
[355669853,1741450252137,-500.0,9.041e-05,2]
[355669854,1741450252146,-500.0,9.041e-05,2]
[355669855,1741450252156,-500.0,9.041e-05,2]
[355669856,1741450252167,-500.0,9.041e-05,2]
[355669857,1741450252176,-500.0,9.041e-05,2]
[355669858,1741450252187,-500.0,9.041e-05,2]
[355669859,1741450252197,-500.0,9.041e-05,2]
[355669860,1741450252206,-500.0,9.041e-05,2]
[355669861,1741450252216,-611.2,9.041e-05,2]
[355669862,1741450252226,-255.07582135,9.041e-05,2]
[355669863,1741450252235,-500.0,9.041e-05,2]
[355669864,1741450252244,-500.0,9.041e-05,2]
[355669865,1741450252254,-500.0,9.041e-05,2]
[355669866,1741450252263,-500.0,9.041e-05,2]
[355669867,1741450252275,-500.0,9.041e-05,2]
[355669868,1741450252285,-500.0,9.041e-05,2]
[355669869,1741450252294,-598.25,9.041e-05,2]
[355669870,1741450252305,-500.0,9.041e-05,2]
[355669871,1741450252316,-801.86,9.041e-05,2]
[355669872,1741450252326,-500.0,9.041e-05,2]
[355669873,1741450252336,-500.0,9.041e-05,2]
[355669874,1741450252346,-563.45,9.041e-05,2]
[355669875,1741450252356,-500.0,9.041e-05,2]
[355669876,1741450252367,-631.96,9.041e-05,2]
[355669877,1741450252377,-500.0,9.041e-05,2]
[355669878,1741450252387,-786.33,9.041e-05,2]
[355669879,1741450252396,-500.0,9.041e-05,2]
[355669880,1741450252406,-585.65,9.041e-05,2]
[355669881,1741450252415,-500.0,9.041e-05,2]
[355669882,1741450252425,-559.71,9.041e-05,2]
[355669883,1741450252434,-500.0,9.041e-05,2]
[355669884,1741450252445,-500.0,9.041e-05,2]
[355669885,1741450252454,-500.0,9.041e-05,2]
[355669886,1741450252464,-500.0,9.041e-05,2]
[355669887,1741450252473,-570.31,9.041e-05,2]
[355669888,1741450252482,-500.0,9.041e-05,2]
[355669889,1741450252492,-500.0,9.041e-05,2]
[355669890,1741450252501,-500.0,9.041e-05,2]
[355669891,1741450252511,-674.8,9.041e-05,2]
[355669892,1741450252521,-500.0,9.041e-05,2]
[355669893,1741450252530,-500.0,9.041e-05,2]
[355669894,1741450252539,-500.0,9.041e-05,2]
[355669895,1741450252550,-875.54,9.041e-05,2]
[355669896,1741450252559,-500.0,9.041e-05,2]
[355669897,1741450252569,-697.96,9.041e-05,2]
[355669898,1741450252578,-500.0,9.041e-05,2]
[355669899,1741450252587,-500.0,9.041e-05,2]
[355669900,1741450252597,-500.0,9.041e-05,2]
[355669901,1741450252605,-500.0,9.041e-05,2]
[355669902,1741450252615,-500.0,9.041e-05,2]
[355669903,1741450252624,-828.33,9.041e-05,2]
[355669904,1741450252633,-500.0,9.041e-05,2]
[355669905,1741450252643,-500.0,9.041e-05,2]
[355669906,1741450252652,-554.2,9.041e-05,2]
[355669907,1741450252662,-500.0,9.041e-05,2]
[355669908,1741450252671,-500.0,9.041e-05,2]
[355669909,1741450252680,-500.0,9.041e-05,2]
[355669910,1741450252689,-500.0,9.041e-05,2]
[355669911,1741450252698,-500.0,9.041e-05,2]
[355669912,1741450252708,-500.0,9.041e-05,2]
[355669913,1741450252717,-511.03,9.041e-05,2]
[355669914,1741450252726,-602.41,9.041e-05,2]
[355669915,1741450252735,-500.0,9.041e-05,2]
[355669916,1741450252744,-500.0,9.041e-05,2]
[355669917,1741450252754,-500.0,9.041e-05,2]
[355669918,1741450252764,-500.0,9.041e-05,2]
[355669919,1741450252774,-500.0,9.041e-05,2]
[355669920,1741450252784,-567.16,9.041e-05,2]
[355669921,1741450252794,-500.0,9.041e-05,2]
[355669922,1741450252804,-500.0,9.041e-05,2]
[355669923,1741450252814,-500.0,9.041e-05,2]
[355669924,1741450252824,-500.0,9.041e-05,2]
[355669925,1741450252834,-500.0,9.041e-05,2]
[355669926,1741450252844,-716.52,9.041e-05,2]
[355669927,1741450252853,-516.17,9.041e-05,2]
[355669928,1741450252863,-555.84,9.041e-05,2]
[355669929,1741450252872,-500.0,9.041e-05,2]
[355669930,1741450252882,-654.94,9.041e-05,2]
[355669931,1741450252891,-500.0,9.041e-05,2]
[355669932,1741450252901,-611.173404,9.041e-05,2]
[355669933,1741450252911,-842.65,9.041e-05,2]
[355669934,1741450252920,-500.0,9.041e-05,2]
[355669935,1741450252929,-774.84,9.041e-05,2]
[355669936,1741450252939,-962.59,9.041e-05,2]
[355669937,1741450252949,-500.0,9.041e-05,2]
[355669938,1741450252958,-500.0,9.041e-05,2]
[355669939,1741450252967,-500.0,9.041e-05,2]
[355669940,1741450252977,-500.0,9.041e-05,2]
[355669941,1741450252987,-500.0,9.041e-05,2]
[355669942,1741450252996,-500.0,9.041e-05,2]
[355669943,1741450253006,-500.0,9.041e-05,2]
[355669944,1741450253015,-500.0,9.041e-05,2]
[355669945,1741450253025,-709.03,9.041e-05,2]
[355669946,1741450253034,-500.0,9.041e-05,2]
[355669947,1741450253043,-393.282689,9.041e-05,2]
[355669948,1741450253054,-1001.97,9.041e-05,2]
[355669949,1741450253064,-500.0,9.041e-05,2]
[355669950,1741450253074,-500.0,9.041e-05,2]
[355669951,1741450253084,-500.0,9.041e-05,2]
[355669952,1741450253093,-500.0,9.041e-05,2]
[355669953,1741450253103,-864.87,9.041e-05,2]
[355669954,1741450253112,-834.37,9.041e-05,2]